bitfinex-derivatives/quotes_BTCF0:USTF0_20251225
["timestamp","ask_amount","ask_price","bid_price","bid_amount"]
[1766696023506,0.02464951,87928.0,87914.0,0.08696]
[1766696023711,0.0683408,87929.0,87914.0,0.08696]
[1766696023906,0.02464954,87928.0,87914.0,0.08696]
[1766696024106,0.0683408,87929.0,87914.0,0.08696]
[1766696024406,0.02464954,87928.0,87914.0,0.08696]
[1766696024608,0.0683408,87929.0,87914.0,0.08696]
[1766696024807,0.02464923,87928.0,87914.0,0.08696]
[1766696025008,0.0683408,87929.0,87914.0,0.08696]
[1766696025210,0.02464923,87928.0,87914.0,0.08696]
[1766696025399,0.0683408,87929.0,87914.0,0.08696]
[1766696025601,0.02464906,87928.0,87914.0,0.08696]
[1766696025803,0.0683408,87929.0,87914.0,0.08696]
[1766696026109,0.02464906,87928.0,87914.0,0.08696]
[1766696026298,0.0683408,87929.0,87914.0,0.08696]
[1766696026499,0.024649,87928.0,87914.0,0.08696]
[1766696026806,0.0683408,87929.0,87914.0,0.08696]
[1766696027006,0.02464903,87928.0,87914.0,0.08696]
[1766696027193,0.0683408,87929.0,87914.0,0.08696]
[1766696027398,0.02464905,87928.0,87914.0,0.08696]
[1766696027698,0.0683408,87929.0,87914.0,0.08696]
[1766696027897,0.02464904,87928.0,87914.0,0.08696]
[1766696028106,0.0683408,87929.0,87914.0,0.0983427]
[1766696028306,0.02464904,87928.0,87914.0,0.0983427]
[1766696028505,0.0683408,87929.0,87914.0,0.0983427]
[1766696028709,0.02464924,87928.0,87914.0,0.0983427]
[1766696028904,0.0683408,87929.0,87914.0,0.0983427]
[1766696029107,0.02464924,87928.0,87914.0,0.0983427]
[1766696029306,0.0683408,87929.0,87914.0,0.0983427]
[1766696029607,0.02464947,87928.0,87914.0,0.0983427]
[1766696029906,0.0683408,87929.0,87914.0,0.0983427]
[1766696030107,0.0246504,87928.0,87914.0,0.0983427]
[1766696030308,0.0683408,87929.0,87914.0,0.0983427]
[1766696030509,0.02465068,87928.0,87914.0,0.0983427]
[1766696030700,0.0683408,87929.0,87914.0,0.0983427]
[1766696030903,0.02465069,87928.0,87914.0,0.0983427]
[1766696031103,0.0683408,87929.0,87914.0,0.0983427]
[1766696031305,0.02465069,87928.0,87914.0,0.0983427]
[1766696031504,0.0683408,87929.0,87914.0,0.0983427]
[1766696031705,0.02465109,87928.0,87914.0,0.0983427]
[1766696031906,0.0683408,87929.0,87914.0,0.0983427]
[1766696032106,0.02465109,87928.0,87914.0,0.0983427]
[1766696032306,0.0683408,87929.0,87914.0,0.0983427]
[1766696032506,0.02465156,87928.0,87914.0,0.0983427]
[1766696032707,0.0683408,87929.0,87914.0,0.0983427]
[1766696032915,0.02465156,87928.0,87914.0,0.0983427]
[1766696033108,0.0683408,87929.0,87914.0,0.0983427]
[1766696033309,0.02465156,87928.0,87914.0,0.0983427]
[1766696033510,0.0683408,87929.0,87915.0,0.01136]
[1766696033710,0.02465217,87928.0,87915.0,0.04136]
[1766696033912,0.0683408,87929.0,87915.0,0.04136]
[1766696034109,0.02465217,87928.0,87915.0,0.04136]
[1766696034313,0.0683408,87929.0,87915.0,0.04136]
[1766696034516,0.02465308,87928.0,87915.0,0.04136]
[1766696034713,0.0683408,87929.0,87915.0,0.04136]
[1766696034904,0.02465303,87928.0,87915.0,0.04136]
[1766696035111,0.0683408,87929.0,87915.0,0.04136]
[1766696035310,0.02465302,87928.0,87915.0,0.04136]
[1766696035513,0.0683408,87929.0,87915.0,0.04136]
[1766696035812,0.02465396,87928.0,87915.0,0.04136]
[1766696036013,0.0683408,87929.0,87915.0,0.04136]
[1766696036213,0.02465396,87928.0,87915.0,0.04136]
[1766696036424,0.0683408,87929.0,87915.0,0.04136]
[1766696036719,0.02465533,87928.0,87915.0,0.04136]
[1766696036920,0.0683408,87929.0,87915.0,0.04136]
[1766696037117,0.02465533,87928.0,87915.0,0.04136]
[1766696037420,0.0683408,87929.0,87915.0,0.04136]
[1766696037622,0.024657,87928.0,87915.0,0.04136]
[1766696037818,0.0683408,87929.0,87915.0,0.04136]
[1766696038019,0.024657,87928.0,87915.0,0.04136]
[1766696038220,0.0683408,87929.0,87915.0,0.04136]
[1766696038414,0.02465889,87928.0,87915.0,0.04136]
[1766696038615,0.0683408,87929.0,87915.0,0.04136]
[1766696038816,0.02465888,87928.0,87915.0,0.04136]
[1766696039123,0.0683408,87929.0,87915.0,0.04136]
[1766696039309,0.02465889,87928.0,87915.0,0.04136]
[1766696039511,0.02465889,87927.0,87915.0,0.04136]
[1766696039714,0.0683408,87929.0,87915.0,0.04136]
[1766696039915,0.02466142,87928.0,87915.0,0.04136]
[1766696040118,0.02466142,87927.0,87915.0,0.04136]
[1766696040315,0.0683408,87929.0,87915.0,0.04136]
[1766696040517,0.02466291,87928.0,87915.0,0.04136]
[1766696040725,0.02466291,87927.0,87915.0,0.04136]
[1766696040926,0.0683408,87929.0,87915.0,0.04136]
[1766696041126,0.02466291,87928.0,87915.0,0.04136]
[1766696041427,0.02466291,87927.0,87915.0,0.04136]
[1766696041628,0.0113811,87927.0,87915.0,0.04136]
[1766696041826,0.02466515,87926.0,87915.0,0.04136]
[1766696042027,0.02466515,87925.0,87915.0,0.04136]
[1766696042227,0.02466515,87924.0,87915.0,0.04136]
[1766696042430,0.0113809,87928.0,87915.0,0.04136]
[1766696042626,0.0246682,87927.0,87915.0,0.04136]
[1766696042827,0.0360494,87926.0,87915.0,0.04136]
[1766696043028,0.0246682,87925.0,87915.0,0.04136]
[1766696043324,0.0113815,87923.0,87915.0,0.04136]
[1766696043624,0.0246682,87922.0,87915.0,0.01]
[1766696043928,0.05696,87924.0,87911.0,0.15372]
[1766696043929,0.0113819,87920.0,87911.0,0.15372]
[1766696044130,0.0113816,87923.0,87911.0,0.18372]
[1766696044330,0.02466303,87922.0,87911.0,0.18372]
[1766696044530,0.02466303,87921.0,87911.0,0.18372]
[1766696044717,0.0113816,87923.0,87911.0,0.18372]
[1766696045029,0.02466299,87922.0,87911.0,0.18372]
[1766696045228,0.02466299,87921.0,87911.0,0.18372]
[1766696045427,0.0113816,87923.0,87911.0,0.18372]
[1766696045629,0.02466122,87922.0,87911.0,0.18372]
[1766696045928,0.02466122,87921.0,87911.0,0.18372]
[1766696046129,0.0113816,87923.0,87911.0,0.18372]
[1766696046428,0.02466008,87922.0,87911.0,0.18372]
[1766696046629,0.02466008,87921.0,87911.0,0.18372]
[1766696046833,0.0113816,87923.0,87911.0,0.18372]
[1766696047032,0.02465992,87922.0,87911.0,0.18372]
[1766696047330,0.02465992,87921.0,87911.0,0.18372]
[1766696047522,0.0683415,87924.0,87911.0,0.18372]
[1766696047717,0.02465878,87923.0,87911.0,0.18372]
[1766696047916,0.02465878,87922.0,87911.0,0.18372]
[1766696048121,0.02465878,87921.0,87911.0,0.18372]
[1766696048318,0.0113816,87923.0,87911.0,0.18372]
[1766696048519,0.02465805,87922.0,87911.0,0.18372]
[1766696048731,0.02465805,87921.0,87911.0,0.18372]
[1766696048933,0.0113816,87923.0,87911.0,0.18372]
[1766696049132,0.02465805,87922.0,87911.0,0.18372]
[1766696049333,0.02465805,87921.0,87911.0,0.18372]
[1766696049533,0.0113816,87923.0,87911.0,0.18372]
[1766696049732,0.0246574,87922.0,87911.0,0.18372]
[1766696049924,0.0246574,87921.0,87911.0,0.18372]
[1766696050124,0.05696,87924.0,87911.0,0.18372]
[1766696050324,0.02465701,87923.0,87911.0,0.18372]
[1766696050537,0.02465701,87922.0,87911.0,0.18372]
[1766696050726,0.02465701,87921.0,87911.0,0.18372]
[1766696050927,0.05696,87924.0,87911.0,0.18372]
[1766696051124,0.0246603,87923.0,87911.0,0.18372]
[1766696051326,0.0246603,87922.0,87911.0,0.18372]
[1766696051625,0.0683414,87924.0,87911.0,0.18372]
[1766696052330,0.0113817,87922.0,87911.0,0.18372]
[1766696052533,0.05696,87924.0,87911.0,0.18372]
[1766696052726,0.0113819,87921.0,87911.0,0.18372]
[1766696053534,0.0683415,87924.0,87911.0,0.18372]
[1766696059045,0.0113818,87921.0,87911.0,0.18372]
[1766696059349,0.05696,87924.0,87911.0,0.18372]
[1766696060249,0.0113819,87921.0,87911.0,0.18372]
[1766696063954,0.0683414,87924.0,87911.0,0.18372]
[1766696064153,0.02465894,87923.0,87911.0,0.18372]
[1766696064356,0.0683414,87924.0,87911.0,0.18372]
[1766696064654,0.02465941,87923.0,87911.0,0.18372]
[1766696064957,0.0683414,87924.0,87911.0,0.18372]
[1766696065148,0.02465942,87923.0,87911.0,0.18372]
[1766696065350,0.0683414,87924.0,87911.0,0.18372]
[1766696065556,0.02466,87923.0,87911.0,0.18372]
[1766696065854,0.0683414,87924.0,87911.0,0.18372]
[1766696066054,0.02466,87923.0,87911.0,0.18372]
[1766696066351,0.0683414,87924.0,87911.0,0.18372]
[1766696066542,0.02466071,87923.0,87911.0,0.18372]
[1766696066747,0.0683414,87924.0,87911.0,0.18372]
[1766696066949,0.02466071,87923.0,87911.0,0.08696]
[1766696067151,0.0683414,87924.0,87911.0,0.08696]
[1766696067352,0.02466084,87923.0,87911.0,0.08696]
[1766696067657,0.0683414,87924.0,87911.0,0.08696]
[1766696067855,0.02466161,87923.0,87911.0,0.08696]
[1766696068056,0.0683414,87924.0,87911.0,0.08696]
[1766696068258,0.02466161,87923.0,87911.0,0.08696]
[1766696068556,0.05696,87924.0,87911.0,0.08696]
[1766696068748,0.0246627,87923.0,87911.0,0.08696]
[1766696068948,0.05696,87924.0,87911.0,0.08696]
[1766696069149,0.0113818,87921.0,87911.0,0.08696]
[1766696069750,0.05696,87924.0,87911.0,0.08696]
[1766696069963,0.02466411,87923.0,87911.0,0.08696]
[1766696070146,0.05696,87924.0,87911.0,0.08696]
[1766696070352,0.02466423,87923.0,87911.0,0.08696]
[1766696070551,0.05696,87924.0,87911.0,0.08696]
[1766696070752,0.02466423,87923.0,87911.0,0.08696]
[1766696070950,0.05696,87924.0,87911.0,0.08696]
[1766696071149,0.02466423,87923.0,87911.0,0.08696]
[1766696071350,0.0683414,87924.0,87911.0,0.08696]
[1766696071549,0.02466611,87923.0,87911.0,0.08696]
[1766696071750,0.0683414,87924.0,87911.0,0.08696]
[1766696071952,0.02466613,87923.0,87911.0,0.08696]
[1766696072253,0.05696,87924.0,87911.0,0.08696]
[1766696072555,0.02466931,87923.0,87911.0,0.08696]
[1766696072757,0.05696,87924.0,87911.0,0.08696]
[1766696072957,0.02466931,87923.0,87911.0,0.08696]
[1766696073158,0.05696,87924.0,87911.0,0.08696]
[1766696073358,0.02467077,87923.0,87911.0,0.08696]
[1766696073553,0.05696,87924.0,87911.0,0.08696]
[1766696073759,0.02467077,87923.0,87911.0,0.08696]
[1766696073959,0.05696,87924.0,87911.0,0.08696]
[1766696074161,0.02467078,87923.0,87911.0,0.098343]
[1766696074352,0.05696,87924.0,87911.0,0.098343]
[1766696074553,0.02467081,87923.0,87911.0,0.098343]
[1766696074755,0.05696,87924.0,87911.0,0.098343]
[1766696074961,0.02467081,87923.0,87911.0,0.098343]
[1766696075151,0.05696,87924.0,87911.0,0.098343]
[1766696075351,0.02467081,87923.0,87911.0,0.098343]
[1766696075551,0.05696,87924.0,87911.0,0.098343]
[1766696075751,0.0246708,87923.0,87911.0,0.098343]
[1766696075952,0.05696,87924.0,87911.0,0.098343]
[1766696076153,0.02467082,87923.0,87911.0,0.098343]
[1766696076358,0.05696,87924.0,87911.0,0.098343]
[1766696076562,0.02467091,87923.0,87911.0,0.098343]
[1766696076861,0.05696,87924.0,87911.0,0.098343]
[1766696077062,0.0246709,87923.0,87911.0,0.098343]
[1766696077264,0.05696,87924.0,87911.0,0.098343]
[1766696077465,0.0246709,87923.0,87911.0,0.098343]
[1766696077663,0.05696,87924.0,87911.0,0.098343]
[1766696077864,0.02467091,87923.0,87911.0,0.098343]
[1766696078067,0.05696,87924.0,87911.0,0.098343]
[1766696078257,0.0246709,87923.0,87911.0,0.098343]
[1766696078457,0.05696,87924.0,87911.0,0.098343]
[1766696078657,0.02467094,87923.0,87911.0,0.098343]
[1766696078858,0.05696,87924.0,87911.0,0.098343]
[1766696079060,0.02467096,87923.0,87911.0,0.098343]
[1766696079259,0.05696,87924.0,87911.0,0.098343]
[1766696079460,0.02467094,87923.0,87911.0,0.098343]
[1766696079662,0.05696,87924.0,87911.0,0.098343]
[1766696079857,0.07465215,87928.0,87916.0,0.0113823]
[1766696080064,0.07465215,87928.0,87916.0,0.0413824]
[1766696080956,6.5e-07,87930.0,87916.0,0.0413824]
[1766696081156,0.05696,87929.0,87916.0,0.0413824]
[1766696082368,6.5e-07,87930.0,87916.0,0.0413824]
[1766696082569,0.05696,87929.0,87916.0,0.0413824]
[1766696084068,0.05696,87928.0,87916.0,0.0413824]
[1766696086074,0.05696,87928.0,87916.0,0.03]
[1766696088877,0.05696,87929.0,87916.0,0.03]
[1766696089677,0.05696,87929.0,87916.0,0.0413823]
[1766696091180,0.05696,87929.0,87916.0,0.03]
[1766696091479,0.0113809,87928.0,87916.0,0.03]
[1766696093381,0.05696,87929.0,87916.0,0.03]
[1766696093682,0.02452112,87928.0,87916.0,0.03]
[1766696093978,0.05696,87929.0,87916.0,0.03]
[1766696094179,0.02452111,87928.0,87916.0,0.03]
[1766696094368,0.05696,87929.0,87916.0,0.03]
[1766696094565,0.02452115,87928.0,87916.0,0.03]
[1766696094765,0.05696,87929.0,87916.0,0.03]
[1766696094965,0.02452115,87928.0,87916.0,0.03]
[1766696095171,0.05696,87929.0,87916.0,0.03]
[1766696095370,0.02452124,87928.0,87917.0,0.0113822]
[1766696095570,0.05696,87929.0,87917.0,0.0413822]
[1766696095771,0.02452125,87928.0,87917.0,0.0413822]
[1766696095974,0.05696,87929.0,87917.0,0.03]
[1766696096273,0.02452126,87928.0,87917.0,0.03]
[1766696096473,0.05696,87929.0,87917.0,0.03]
[1766696096672,0.0245214,87928.0,87917.0,0.03]
[1766696096973,0.05696,87929.0,87917.0,0.03]
[1766696097172,0.0245214,87928.0,87917.0,0.03]
[1766696097372,0.05696,87929.0,87917.0,0.03]
[1766696097592,0.02452163,87928.0,87917.0,0.03]
[1766696097869,0.05696,87929.0,87917.0,0.03]
[1766696098074,0.02452164,87928.0,87917.0,0.03]
[1766696098274,0.05696,87929.0,87917.0,0.03]
[1766696098483,0.02452193,87928.0,87917.0,0.03]
[1766696098682,0.05696,87929.0,87917.0,0.03]
[1766696098883,0.02452194,87928.0,87917.0,0.03]
[1766696099081,0.05696,87929.0,87917.0,0.03]
[1766696099282,0.02452193,87928.0,87917.0,0.03]
[1766696099483,0.05696,87929.0,87917.0,0.03]
[1766696099681,0.0245223,87928.0,87917.0,0.03]
[1766696099880,0.05696,87929.0,87917.0,0.03]
[1766696100089,0.0245223,87928.0,87917.0,0.03]
[1766696100383,0.05696,87929.0,87917.0,0.03]
[1766696100583,0.02452259,87928.0,87917.0,0.03]
[1766696100785,0.05696,87929.0,87917.0,0.03]
[1766696100987,0.02452258,87928.0,87917.0,0.03]
[1766696101185,0.02452297,87927.0,87917.0,0.03]
[1766696101386,0.05696,87929.0,87917.0,0.03]
[1766696101581,0.0113819,87920.0,87906.0,0.05713065]
[1766696101786,0.0777362,87921.0,87906.0,0.09851425]
[1766696102382,0.05696,87921.0,87906.0,0.08713065]
[1766696103390,0.05696,87921.0,87914.0,0.0113826]
[1766696103589,0.05696,87921.0,87914.0,0.0413826]
[1766696103987,0.05696,87923.0,87914.0,0.0413826]
[1766696104176,0.07773685,87930.0,87915.0,0.0113825]
[1766696104380,0.17824305,87929.0,87915.0,0.0413825]
[1766696104575,0.02452305,87928.0,87915.0,0.0413825]
[1766696104781,0.02452305,87927.0,87915.0,0.03]
[1766696105076,0.02452305,87926.0,87915.0,0.03]
[1766696105390,0.02452305,87925.0,87915.0,0.03]
[1766696105591,0.0113809,87928.0,87915.0,0.03]
[1766696105788,0.02452158,87927.0,87915.0,0.03]
[1766696105986,0.02452158,87926.0,87915.0,0.03]
[1766696106191,0.02452158,87925.0,87915.0,0.03]
[1766696106378,0.0113809,87928.0,87915.0,0.03]
[1766696106578,0.02452096,87927.0,87915.0,0.03]
[1766696106791,0.02452096,87926.0,87915.0,0.03]
[1766696106991,0.02452096,87925.0,87915.0,0.03]
[1766696107194,0.0113809,87928.0,87915.0,0.03]
[1766696107394,0.02452095,87927.0,87915.0,0.03]
[1766696107595,0.02452095,87926.0,87915.0,0.03]
[1766696107797,0.02452095,87925.0,87915.0,0.03]
[1766696107993,0.0113809,87928.0,87915.0,0.03]
[1766696108194,0.02452023,87927.0,87915.0,0.03]
[1766696108398,0.02452023,87926.0,87915.0,0.03]
[1766696108698,0.02452023,87925.0,87915.0,0.03]
[1766696108997,0.0113809,87928.0,87915.0,0.03]
[1766696109200,0.02451952,87927.0,87915.0,0.03]
[1766696109396,0.02451952,87926.0,87915.0,0.03]
[1766696109596,0.02451952,87925.0,87915.0,0.03]
[1766696109798,0.05696,87924.0,87915.0,0.03]
[1766696110503,0.05696,87923.0,87915.0,0.03]
[1766696120510,0.05696,87922.0,87915.0,0.03]
[1766696129519,0.0113809,87928.0,87915.0,0.03]
[1766696129718,0.17818534,87927.0,87915.0,0.03]
[1766696129918,0.02446534,87926.0,87915.0,0.03]
[1766696130115,0.02446534,87925.0,87915.0,0.03]
[1766696130318,0.02446534,87924.0,87915.0,0.03]
[1766696130518,0.02446534,87923.0,87915.0,0.03]
[1766696130710,0.08142534,87922.0,87915.0,0.03]
[1766696130911,0.05696,87922.0,87915.0,0.03]
[1766696131722,0.02447131,87921.0,87915.0,0.03]
[1766696131921,0.02447131,87920.0,87915.0,0.03]
[1766696132215,0.05696,87922.0,87915.0,0.0413824]
[1766696133919,0.05696,87924.0,87920.0,0.0113818]
[1766696134120,6.5e-07,87930.0,87920.0,0.0413818]
[1766696134313,0.09676,87940.0,87920.0,0.1077362]
[1766696134513,0.05696,87939.0,87923.0,0.0113814]
[1766696134712,0.05696,87939.0,87923.0,0.0413814]
[1766696135421,0.05696,87939.0,87923.0,0.0253814]
[1766696135822,0.0683395,87939.0,87923.0,0.0253814]
[1766696136822,0.0113797,87937.0,87923.0,0.0253814]
[1766696140729,0.05696,87939.0,87923.0,0.0367628]
[1766696142413,0.05696,87939.0,87923.0,0.0257628]
[1766696143432,0.0113796,87938.0,87923.0,0.0143814]
[1766696154437,0.0113802,87933.0,87923.0,0.0143814]
[1766696155835,0.0683395,87939.0,87924.0,0.0113813]
[1766696156036,0.05696,87939.0,87924.0,0.03]
[1766696156245,0.0113806,87930.0,87924.0,0.015]
[1766696156439,0.0113806,87930.0,87916.0,0.09676]
[1766696156633,0.0113806,87930.0,87916.0,0.12676]
[1766696160844,0.0113806,87930.0,87916.0,0.1381423]
[1766696161844,0.05696,87935.0,87916.0,0.12676]
[1766696162746,0.05696,87936.0,87916.0,0.12676]
[1766696162940,0.05696,87935.0,87916.0,0.12676]
[1766696163330,0.05696,87935.0,87920.0,0.0113818]
[1766696163547,0.05696,87935.0,87920.0,0.0413818]
[1766696166746,0.06834,87935.0,87920.0,0.0413818]
[1766696168545,0.01155005,87940.0,87920.0,0.03]
[1766696168738,0.05696,87937.0,87923.0,0.0113814]
[1766696168939,0.05696,87937.0,87923.0,0.0413814]
[1766696170154,0.05696,87937.0,87923.0,0.03]
[1766696174451,0.0113798,87936.0,87923.0,0.03]
[1766696175549,0.05696,87937.0,87923.0,0.03]
[1766696175749,0.0113803,87933.0,87923.0,0.03]
[1766696177255,0.0113803,87932.0,87923.0,0.03]
[1766696181868,0.0113801,87935.0,87923.0,0.03]
[1766696182064,0.0113802,87933.0,87923.0,0.03]
[1766696185471,0.0113799,87936.0,87923.0,0.03]
[1766696186274,0.0113801,87934.0,87923.0,0.03]
[1766696190379,0.0113803,87932.0,87917.0,0.0113822]
[1766696190574,0.0113803,87932.0,87917.0,0.0413822]
[1766696190875,0.0113803,87932.0,87919.0,0.011382]
[1766696197181,0.0113801,87934.0,87919.0,0.03]
[1766696197477,0.05696,87937.0,87919.0,0.03]
[1766696197681,0.0113804,87932.0,87919.0,0.03]
[1766696197879,0.0113805,87931.0,87919.0,0.03]
[1766696198080,0.05696,87937.0,87919.0,0.03]
[1766696199078,0.0113804,87932.0,87919.0,0.03]
[1766696203691,0.0113807,87930.0,87919.0,0.03]
[1766696206893,0.0113803,87933.0,87919.0,0.03]
[1766696207094,0.0113803,87933.0,87926.0,0.01599163]
[1766696207395,0.0113803,87933.0,87917.0,0.0113822]
[1766696207587,0.0113803,87933.0,87917.0,0.0413822]
[1766696208898,0.05696,87937.0,87917.0,0.03]
[1766696209595,0.0113802,87933.0,87918.0,0.0113821]
[1766696209797,0.0113802,87933.0,87918.0,0.0413821]
[1766696211294,0.00017065,87940.0,87918.0,0.03]
[1766696211501,0.0113801,87934.0,87918.0,0.03]
[1766696212192,0.0113801,87934.0,87920.0,0.0113819]
[1766696212403,0.0113801,87934.0,87920.0,0.0413819]
[1766696214103,0.0113796,87938.0,87923.0,0.0113815]
[1766696214290,0.15372,87939.0,87923.0,0.03]
[1766696215200,0.01138,87935.0,87923.0,0.03]
[1766696218200,0.05713065,87940.0,87923.0,0.0413815]
[1766696218699,0.0113802,87934.0,87923.0,0.03]
[1766696218893,0.05713065,87940.0,87923.0,0.03]
[1766696219101,0.0113804,87932.0,87923.0,0.03]
[1766696219800,0.0113806,87930.0,87923.0,0.03]
[1766696220196,0.0113806,87930.0,87910.0,0.04099607]
[1766696220394,0.0113797,87937.0,87911.0,0.1651029]
[1766696220594,0.0113817,87922.0,87911.0,0.18372]
[1766696220794,0.05713065,87940.0,87912.0,0.05696]
[1766696221098,0.0113815,87923.0,87912.0,0.08696]
[1766696221494,0.011382,87920.0,87912.0,0.08696]
[1766696221802,0.011382,87920.0,87912.0,0.01]
[1766696222400,0.07775217,87922.0,87906.0,0.00017065]
[1766696222598,0.07775217,87922.0,87906.0,0.03017065]
[1766696224193,0.0113821,87919.0,87906.0,0.03017065]
[1766696225106,0.0113818,87921.0,87906.0,0.03017065]
[1766696225302,0.0113817,87922.0,87907.0,0.0113835]
[1766696225497,0.0113817,87922.0,87907.0,0.0413835]
[1766696226706,0.07775217,87920.0,87907.0,0.0413835]
[1766696226907,0.07775217,87920.0,87907.0,0.03]
[1766696231817,0.0113824,87917.0,87907.0,0.03]
[1766696232020,0.0113822,87918.0,87907.0,0.03]
[1766696239626,0.0113822,87918.0,87912.0,0.00156232]
[1766696239821,0.0113822,87918.0,87912.0,0.03156232]
[1766696240627,0.0113822,87918.0,87912.0,0.03]
[1766696241032,0.0113824,87916.0,87906.0,0.00017065]
[1766696241327,0.07775217,87920.0,87906.0,0.03017065]
[1766696241328,0.0113823,87917.0,87906.0,0.03017065]
[1766696245828,0.08913417,87920.0,87906.0,0.03017065]
[1766696247628,0.05696,87920.0,87907.0,0.0113835]
[1766696247824,0.05696,87920.0,87907.0,0.03]
[1766696249530,0.05696,87920.0,87908.0,0.0113834]
[1766696249727,0.05696,87920.0,87908.0,0.0413834]
[1766696250524,0.05696,87920.0,87908.0,0.03]
[1766696251829,0.05696,87920.0,87914.0,0.00156234]
[1766696252828,0.05696,87920.0,87917.0,0.00156234]
[1766696253229,0.05696,87920.0,87906.0,0.01155425]
[1766696253433,0.05696,87920.0,87906.0,0.04155425]
[1766696261552,0.0683419,87920.0,87906.0,0.03017065]
[1766696265454,0.0683419,87920.0,87913.0,0.00156232]
[1766696265645,0.0683419,87920.0,87913.0,0.03156232]
[1766696266449,0.0683419,87920.0,87916.0,0.00156232]
[1766696266655,0.05696,87920.0,87916.0,0.00156232]
[1766696266955,0.05696,87920.0,87907.0,0.0113836]
[1766696267156,0.05696,87920.0,87907.0,0.0413836]
[1766696273458,0.05696,87920.0,87907.0,0.03]
[1766696273665,0.05696,87920.0,87906.0,0.00017065]
[1766696275258,0.0113822,87918.0,87906.0,0.00017065]
[1766696276364,0.13471217,87920.0,87906.0,0.00017065]
[1766696276668,0.0113823,87917.0,87906.0,0.00017065]
[1766696278978,0.05696,87920.0,87906.0,0.00017065]
[1766696278979,0.011382,87920.0,87906.0,0.00017065]
[1766696279779,0.0113821,87918.0,87906.0,0.00017065]
[1766696280381,0.0113831,87911.0,87902.0,0.09676]
[1766696280681,0.0113831,87911.0,87902.0,0.04842]
[1766696280882,0.0113831,87911.0,87902.0,0.01]
[1766696281564,0.0113827,87914.0,87902.0,0.01]
[1766696281981,0.0113824,87917.0,87902.0,0.01]
[1766696283281,0.0113824,87917.0,87909.0,0.00156232]
[1766696283480,0.0113824,87917.0,87904.0,0.0113839]
[1766696283676,0.0113826,87915.0,87898.0,0.00017065]
[1766696283981,0.0113828,87913.0,87899.0,0.0113846]
[1766696284180,0.0113828,87913.0,87899.0,0.0413846]
[1766696284681,0.0113825,87916.0,87901.0,0.0113843]
[1766696284868,0.0113825,87916.0,87901.0,0.0413843]
[1766696285072,0.0113827,87914.0,87901.0,0.03]
[1766696285272,0.05696,87921.0,87898.0,0.01155535]
[1766696285273,0.011383,87912.0,87898.0,0.01155535]
[1766696285473,0.011383,87912.0,87898.0,0.04155535]
[1766696285984,0.02304115,87912.0,87898.0,0.04155535]
[1766696289879,0.02304115,87912.0,87898.0,0.03017065]
[1766696290183,0.0113836,87907.0,87894.0,0.05696]
[1766696290384,0.0113836,87907.0,87894.0,0.08696]
[1766696290785,0.0113833,87910.0,87894.0,0.0983452]
[1766696291583,0.0113835,87908.0,87894.0,0.0983452]
[1766696293186,0.0113835,87908.0,87894.0,0.08696]
[1766696295786,0.0113837,87906.0,87894.0,0.08696]
[1766696296285,0.0113835,87908.0,87895.0,0.0113851]
[1766696296481,0.0113835,87908.0,87895.0,0.0413851]
[1766696296682,0.0113831,87911.0,87895.0,0.0413851]
[1766696299279,0.0113831,87911.0,87897.0,0.0113849]
[1766696299486,0.01160149,87913.0,87894.0,0.05696]
[1766696299689,0.09676,87916.0,87894.0,0.08696]
[1766696300486,0.15372,87915.0,87894.0,0.08696]
[1766696300983,0.15372,87915.0,87904.0,0.0015626]
[1766696301888,0.15372,87915.0,87909.0,0.0015626]
[1766696302978,0.15372,87915.0,87912.0,0.0015626]
[1766696303491,0.15372,87915.0,87900.0,0.0113844]
[1766696304291,0.0113824,87916.0,87902.0,0.0113842]
[1766696304493,0.0113824,87916.0,87902.0,0.0283842]
[1766696305192,0.0113824,87916.0,87902.0,0.0397684]
[1766696305392,0.05696,87917.0,87902.0,0.0397684]
[1766696305693,0.05696,87917.0,87904.0,0.0113839]
[1766696305990,0.05696,87917.0,87904.0,0.0397681]
[1766696306387,0.05696,87917.0,87904.0,0.0413839]
[1766696306585,0.05696,87917.0,87906.0,0.0113836]
[1766696306787,0.05696,87917.0,87906.0,0.0413836]
[1766696306990,0.0113817,87922.0,87906.0,0.0413836]
[1766696307286,0.15372,87921.0,87906.0,0.0413836]
[1766696307486,0.0113817,87922.0,87906.0,0.0413836]
[1766696308087,0.15372,87921.0,87906.0,0.0413836]
[1766696308287,0.15372,87920.0,87906.0,0.0413836]
[1766696308790,0.0113817,87922.0,87906.0,0.0413836]
[1766696308989,0.06112423,87928.0,87906.0,0.0413836]
[1766696308990,0.06112423,87928.0,87906.0,0.03]
[1766696309180,0.01148841,87926.0,87906.0,0.03]
[1766696309380,0.0113813,87925.0,87906.0,0.03]
[1766696309584,0.05696,87924.0,87906.0,0.03]
[1766696310188,0.05696,87924.0,87909.0,0.0113833]
[1766696310386,0.05696,87924.0,87909.0,0.0413833]
[1766696311595,0.05696,87924.0,87909.0,0.0243833]
[1766696312190,0.05696,87924.0,87909.0,0.0357666]
[1766696312396,0.0113813,87925.0,87909.0,0.0357666]
[1766696312590,0.05696,87926.0,87909.0,0.0357666]
[1766696315694,0.05696,87926.0,87916.0,0.0021013]
[1766696316599,0.05696,87926.0,87919.0,0.0021013]
[1766696317601,0.05696,87926.0,87921.0,0.0021013]
[1766696317797,0.05696,87926.0,87911.0,0.01155365]
[1766696318500,0.05696,87926.0,87911.0,0.04155365]
[1766696318800,0.05696,87926.0,87911.0,0.02455365]
[1766696319100,0.05696,87926.0,87913.0,0.0113828]
[1766696319296,0.05696,87933.0,87913.0,0.03]
[1766696320098,0.0113805,87931.0,87913.0,0.03]
[1766696320300,0.01155115,87931.0,87913.0,0.03017065]
[1766696321301,0.01155115,87931.0,87913.0,0.04155335]
[1766696322305,0.02294313,87931.0,87913.0,0.04155335]
[1766696322503,0.02294313,87931.0,87915.0,0.0113824]
[1766696322703,0.02294313,87931.0,87915.0,0.0413824]
[1766696324107,0.01155115,87931.0,87915.0,0.0413824]
[1766696325501,0.01155115,87931.0,87917.0,0.0113822]
[1766696325701,0.01155115,87931.0,87917.0,0.0413822]